Cogmind - Beta 16 --- EXPLORER MODE // 2026.01.13 @ 13:26:10 Player: K.K.Y. Result: Destroyed by G-50 Soldier with Heavy Laser Performance ------------- Evolutions (4) 2000 Regions Visited (6) 1200 Robots Destroyed (124) 620 Value Destroyed (2881) 2881 Prototype IDs (16) 320 Alien Tech Used (0) 0 Bonus (-6790) -6790 TOTAL SCORE: 231 Bonus ------- Follower Combat Kills 313 Delivered SUBCON Basin 2000 Friendly Fire -9103 Cogmind --------- Core Integrity 0/850 Matter 286/300 Energy 283/290 System Corruption 0% Temperature Danger (429) Movement Walking (190) Ox1 Location -6/Factory Parts ------- > --- POWER (2) -------- Improved Deuterium Engine > --- PROPULSION (4) --- Flexi-carbon Leg Flexi-carbon Leg > --- UTILITY (8) ------ Large Storage Unit Machine Analyzer Improved Light Armor Plating Graphene Brace Tech Extrapolator System Guard > --- WEAPON (2) ------- Phase Cannon Gauss Rifle > --- INVENTORY (15) --- Light Humpback Experimental Sensor Array Core Analyzer Armor Integrity Analyzer Hacking Suite Improved Hacking Suite System Shield System Guard Recalibrator Autogun Gauss Rifle Multitool Peak State ------------ > --- POWER ------------ Light Nuclear Core Angular Momentum Engine Light Antimatter Reactor > --- PROPULSION ------- Armored Treads Advanced Treads Improved Medium Treads > --- UTILITY ---------- Advanced Heat Sink Large Storage Unit Machine Analyzer Transmission Jammer Medium Armor Plating Hardened Medium Armor Plating Hacking Suite Tech Extrapolator > --- WEAPON ----------- Powered Cannon > --- INVENTORY -------- Improved Heat Sink Advanced Cooling System Light Humpback Experimental Sensor Array Improved Light Armor Plating Improved Light Armor Plating Hacking Suite Improved Hacking Suite System Shield Phase Cannon Coil Gun Magnetic Acceleration Cannon Multitool Ripper [Rating: 72] Favorites ----------- Power Light Nuclear Core Engine Light Ion Engine Power Core Light Nuclear Core Reactor Light Antimatter Reactor Propulsion Spiked Treads Treads Spiked Treads Leg Flexi-carbon Leg Wheel Wheel Utility Large Storage Unit Device V3-11A's Pendant Storage Large Storage Unit Processor System Guard Hackware Hacking Suite Protection Hardened Light Armor Plating Weapon Powered Cannon Energy Gun Medium Laser Energy Cannon Powered Cannon Ballistic Gun Coil Gun Ballistic Cannon Magnetic Acceleration Cannon Launcher Mini Grenade Launcher Special Weapon Mining Laser Slashing Weapon Ripper Build | -11 -10 -10 -10 -8 -8 -6 ------- Run | Yrd Mat Min Sub Rec Scr Fac Slots Evolved 9 | . 1 . . . . 8 Power 1 | . . . . . . 1 Propulsion 2 | . . . . . . 2 Utility 6 | . 1 . . . . 5 Weapon . | . . . . . . . Parts Attached 82 | 4 11 1 17 8 4 37 Power 16 | 1 2 1 1 3 2 6 Engine 9 | 1 . 1 1 2 1 3 Core 6 | . 2 . . 1 1 2 Reactor 1 | . . . . . . 1 Propulsion 15 | 2 . . 3 2 1 7 Treads 11 | 2 . . 3 2 1 3 Leg 2 | . . . . . . 2 Wheel 2 | . . . . . . 2 Hover . | . . . . . . . Flight . | . . . . . . . Utility 30 | . 5 . 6 3 1 15 Device 12 | . . . 5 . . 7 Storage 3 | . 2 . 1 . . . Processor 4 | . . . . . . 4 Hackware 1 | . . . . . . 1 Protection 10 | . 3 . . 3 1 3 Artifact . | . . . . . . . Weapon 21 | 1 4 . 7 . . 9 Energy Gun 5 | 1 . . 3 . . 1 Energy Cannon 7 | . 1 . 3 . . 3 Ballistic Gun 3 | . . . . . . 3 Ballistic Cannon 1 | . . . . . . 1 Launcher 3 | . 2 . 1 . . . Special Weapon 1 | . 1 . . . . . Impact Weapon . | . . . . . . . Slashing Weapon 1 | . . . . . . 1 Piercing Weapon . | . . . . . . . Special Melee Weapon . | . . . . . . . Unidentified Prototypes 2 | . . . 1 . . 1 Parts Lost 29 | . . . 2 . . 27 Power 5 | . . . . . . 5 Propulsion 7 | . . . . . . 7 Utility 10 | . . . 1 . . 9 Weapon 7 | . . . 1 . . 6 Highest Loss Streak 8 | . . . 2 . . 8 To Critical Strikes . | . . . . . . . Average Backups 13 | 1 8 14 13 12 13 13 Power . | . . 2 . . . . Propulsion . | . . . . . . . Utility 7 | 1 4 7 6 8 9 10 Weapon 4 | . 2 4 5 3 3 1 Tool/Special . | . . . . . . . Unused Backups 20 | . 1 . 6 2 2 9 Power . | . . . . . . . Propulsion . | . . . . . . . Utility 12 | . 1 . 2 . 2 7 Weapon 6 | . . . 3 2 . 1 Tool/Special 2 | . . . 1 . . 1 Average Slot Usage (%) 87 | . 88 77 90 83 88 78 Engine 3 | . . 2 2 4 10 6 Core 12 | . 8 . 14 17 11 2 Treads 19 | . 22 12 21 22 22 11 Device 13 | . . . 21 . . 10 Storage 10 | . 10 12 11 11 11 5 Processor 1 | . . . . . . 18 Protection 7 | . 22 25 1 17 22 7 Energy Gun 6 | . 11 12 7 . . 3 Energy Cannon 9 | . . 12 9 11 11 3 Peak Build Rating 72 | 4 14 12 49 50 39 72 Average Rating 29 | 3 12 10 26 37 38 58 On Entrance 21 | . 4 10 12 49 37 39 Avg Prop Armor Cover (%) 14 | . . . . . . 14 Naked Turns . | . . . . . . . Heaviest Build 79 | 5 38 38 79 67 62 76 Greatest Support 72 | 40 40 20 40 42 42 72 Greatest Overweight (x) 14 | . 1 1 1 1 1 14 Average Overweight (x) . | . . 1 . . 1 . Largest Inventory Capacity 25 | 5 15 15 25 25 15 15 Average Capacity 15 | 5 11 15 15 16 15 15 Most Carried 25 | 5 14 15 25 25 15 15 Average Carried 14 | 2 8 14 14 16 14 14 Final Capacity 25 | 5 15 15 25 15 15 15 Final Carried 25 | 3 14 14 25 15 15 13 Class Distribution -------------------- 96% | Hacker-Mutant 3% | Scavenger-Mutant Dominant Class ---------------- Hacker-Mutant | -10/Materials Hacker-Mutant | -10/Mines Hacker-Mutant | -10/Subcaves Hacker-Mutant | -8/Recycling Hacker-Mutant | -8/Scraptown Hacker-Mutant | -6/Factory Resources | -11 -10 -10 -10 -8 -8 -6 ----------- Run | Yrd Mat Min Sub Rec Scr Fac Matter Collected 1559 | 240 218 98 262 130 60 551 Remotely . | . . . . . . . Salvage Created 5657 | 197 742 291 2162 409 . 1856 Parts 318 | 9 27 19 148 19 . 96 Haulers Intercepted 2 | . 2 . . . . . Recyclers Shooed 4 | . . . . . . 4 Parts Field Recycled . | . . . . . . . Retrieved Matter . | . . . . . . . Parts Self-Destructed . | . . . . . . . Prevented . | . . . . . . . Parts Restored . | . . . . . . . Kills | -11 -10 -10 -10 -8 -8 -6 ------- Run | Yrd Mat Min Sub Rec Scr Fac Combat Hostiles Destroyed 56 | . 9 8 3 6 . 30 Melee 1 | . . . . . . 1 Guns 26 | . 9 2 2 . . 13 Cannons 25 | . . 6 1 6 . 12 Classes Destroyed 21 | 2 4 2 4 5 . 4 Worker 4 | . . 2 . . . 2 Builder 1 | . 1 . . . . . Tunneler 5 | 5 . . . . . . Hauler 2 | . 2 . . . . . Recycler 6 | 1 2 1 . . . 2 Operator 1 | . . . . . . 1 Turret 2 | . . . 2 . . . Watcher 4 | . 3 . . . . 1 Swarmer 10 | . . 6 1 . . 3 Grunt 18 | . 9 2 . . . 7 Duelist 1 | . . . . 1 . . Protector 1 | . . . . 1 . . Sentry 4 | . . . . 2 . 2 Specialist 2 | . . . . . . 2 Hunter 11 | . . . . 1 . 10 Programmer 5 | . . . . 1 . 4 Heavy 1 | . . . . . . 1 Behemoth 1 | . . . . . . 1 Artisan 3 | . . . 3 . . . Subdweller 43 | . . . 43 . . . Zionite 2 | . . . 2 . . . Best Kill Streak 7 | 5 2 3 2 2 . 7 Combat Bots Only 5 | . 2 2 1 2 . 5 Max Kills in Single Turn 1 | 1 1 1 1 1 . 1 Gunslinging . | . . . . . . . Exploded . | . . . . . . . Melee 1 | . . . . . . 1 Uniques/NPCs Destroyed . | . . . . . . . Combat | -11 -10 -10 -10 -8 -8 -6 -------- Run | Yrd Mat Min Sub Rec Scr Fac Hostile Shots Fired 693 | . 57 39 55 28 . 514 Missed 166 | . 15 6 27 6 . 112 Hits 527 | . 42 33 28 22 . 402 Melee 2 | . . . . 2 . . Projectile 525 | . 42 33 28 20 . 402 AOE 7 | . . . 3 . . 4 Critical Strikes 10 | . 1 . . 1 . 8 Actively Blocked 3 | . . . . . . 3 Damage Taken 5446 | . 426 263 389 236 . 4132 Core 1079 | . 53 105 58 13 . 850 Absorbed by Shields . | . . . . . . . Ignored by Resistances 3192 | . 262 124 212 141 . 2453 Regen/Repaired (Parts) 216 | . 170 . . . . 46 Core Remaining (%) 54 | 100 . . . . 8 . Volleys Fired 1463 | 17 87 26 1189 36 . 108 Largest 2 | 1 2 2 2 1 . 2 Hottest 150 | 50 100 110 150 40 . 129 Shots Fired 1654 | 17 88 52 1304 36 . 157 Gun 345 | 17 86 26 147 . . 69 Cannon 1303 | . . 26 1153 36 . 88 Launcher 4 | . 1 . 3 . . . Special 2 | . 1 . 1 . . . Kinetic 49 | . . . . . . 49 Thermal 1528 | 17 87 52 1228 36 . 108 Explosive 1 | . 1 . . . . . Electromagnetic 76 | . . . 76 . . . Robot Hit Streak 74 | 17 29 16 74 22 . 40 Robot Miss Streak 5 | . 3 5 1 1 . 4 Penetration Max 1 | . . . . . . 1 Secondary Targets 3 | . . . . . . 3 Max Gunslinging Chain 1 | . . . . . . 1 Shots Hit Robots 460 | 17 78 39 163 23 . 140 Core Hits 184 | 6 32 13 57 9 . 67 Critical Kills 13 | . . . 8 . . 5 Critical Parts Destroyed . | . . . . . . . Critical Strikes 30 | 5 7 3 10 . . 5 Burn 17 | 5 7 3 2 . . . Meltdown 11 | . . . 8 . . 3 Destroy 2 | . . . . . . 2 Melee Attacks 1 | . . . . . . 1 Impact . | . . . . . . . Slashing 1 | . . . . . . 1 Piercing . | . . . . . . . Sneak Attacks . | . . . . . . . Combat Hostiles . | . . . . . . . Follow-up Attacks . | . . . . . . . Damage Inflicted 13965 | 210 1066 603 6041 1171 . 4874 Guns 3913 | 210 1003 263 741 . . 1696 Cannons 9953 | . . 340 5300 1171 . 3142 Explosions 52 | . 52 . . . . . Melee 35 | . . . . . . 35 Ramming 12 | . 11 . . . . 1 Kinetic 974 | . . . . . . 974 Thermal 12465 | 210 1003 603 5614 1171 . 3864 Explosive 52 | . 52 . . . . . Electromagnetic 427 | . . . 427 . . . Impact . | . . . . . . . Slashing 35 | . . . . . . 35 Piercing . | . . . . . . . Highest Corruption 3 | . . . . . . 3 Average Corruption 2 | . . . . . . 2 Corruption Purged . | . . . . . . . Corruption Blocked . | . . . . . . . Effects 4 | . . . . . . 4 Message Errors 2 | . . . . . . 2 Heat Flow Errors 1 | . . . . . . 1 Data Loss (minor) 1 | . . . . . . 1 Overload Shots 9 | . . . 3 . . 6 Effects 1 | . . . . . . 1 Heat Surge 1 | . . . . . . 1 Overflow Damage 186 | . . 11 26 37 . 112 Projectiles 186 | . . 11 26 37 . 112 Explosions . | . . . . . . . Melee . | . . . . . . . Knockbacks 3 | . . . . . . 3 Impact . | . . . . . . . Kinetic 3 | . . . . . . 3 Secondary . | . . . . . . . Self-Inflicted Damage 55 | . 31 . 24 . . . Shots 2 | . 1 . 1 . . . Rammed 2 | . 1 . . . . 1 Targets Rammed 2 | . 1 . . . . 1 Kicked . | . . . . . . . Crushed . | . . . . . . . Highest Temperature 690 | 110 502 690 105 328 . 477 Average Temperature 97 | 41 165 195 13 112 . 99 Received Heat Transfer 1185 | . 345 69 153 63 . 555 Effects 30 | . 9 15 . 2 . 4 Shutdowns 4 | . 3 . . . . 1 Energy Bleed 2 | . 1 . . 1 . . Interference 8 | . 3 2 . 1 . 2 Matter Decay 3 | . 2 1 . . . . Short Circuit 1 | . . 1 . . . . Damage (minor) 2 | . . 1 . . . 1 Damage (major) 8 | . . 8 . . . . Damage (core) 2 | . . 2 . . . . Siege Activations . | . . . . . . . Martial Activations . | . . . . . . . Shielding Activations . | . . . . . . . Robots Disrupted . | . . . . . . . Combat Hostiles . | . . . . . . . Robots Corrupted . | . . . . . . . Combat Hostiles . | . . . . . . . Parts Fried . | . . . . . . . Impact Corruptions . | . . . . . . . Robots Melted 14 | 1 1 . 8 . . 4 Combat Hostiles 4 | . . . . . . 4 Parts Melted 34 | 3 6 4 13 . . 8 Heat Transferred 12062 | 999 3478 1702 2078 . . 3805 Parts Sabotaged . | . . . . . . . Parts Stolen . | . . . . . . . Parts Stripped . | . . . . . . . Power Chain Reactions 2 | . . . 2 . . . Alert | -11 -10 -10 -10 -8 -8 -6 ------- Run | Yrd Mat Min Sub Rec Scr Fac Maximum Alert Level . | . . . . . . . Low Security (%) 100 | 100 100 100 . 100 . 100 Level 1 . | . . . . . . . Level 2 . | . . . . . . . Level 3 . | . . . . . . . Level 4 . | . . . . . . . Level 5 . | . . . . . . . High Security . | . . . . . . . Max Security . | . . . . . . . Peak Influence 105 | 15 77 50 . 26 . 105 Initial . | . . . . . . . Average 5 | 3 7 3 . 1 . 12 Influence Increases 1956 | 30 313 234 134 217 . 1028 Destroy 0b10 Robot/C 1260 | . 180 160 120 140 . 660 Destroy 0b10 Robot/NC 135 | 30 40 15 . 20 . 30 Destroy Leader 282 | . 50 40 10 . . 182 Allied During Kill 7 | . . . 4 2 . 1 Successful Hack 112 | . . . . 50 . 62 Disable Machine 20 | . 8 4 . . . 8 Destroy Structure 20 | . 5 . . 5 . 10 Lose Combat Pursuer 120 | . 30 15 . . . 75 Influence Decreases 1955 | 30 313 234 134 217 . 1027 Time Decay 1724 | 30 313 234 129 217 . 801 Lost Part 186 | . . . . . . 186 Lost Ally 45 | . . . 5 . . 40 Squads Dispatched 11 | . . . . . . 11 Investigation 4 | . . . . . . 4 Extermination 3 | . . . . . . 3 Reinforcement 4 | . . . . . . 4 Assault . | . . . . . . . Garrison . | . . . . . . . Intercept . | . . . . . . . Searches Triggered . | . . . . . . . Construction Impeded 1 | . . . . . . 1 Haulers Reinforced . | . . . . . . . Active Scanning Responses . | . . . . . . . Cargo Convoy Interrupts 1 | . . . . . . 1 Stealth | -11 -10 -10 -10 -8 -8 -6 --------- Run | Yrd Mat Min Sub Rec Scr Fac Distress Signals 5 | . 3 . . . . 2 Communications Jammed . | . . . . . . . Distress Signals . | . . . . . . . Times Spotted 120 | . 20 9 39 8 . 44 Peak Tracking Total 5 | . 4 2 2 2 . 5 Tactical Retreats 6 | . 2 1 . . . 3 Traps | -11 -10 -10 -10 -8 -8 -6 ------- Run | Yrd Mat Min Sub Rec Scr Fac Traps Triggered 4 | . 3 . 1 . . . Indirectly . | . . . . . . . Trap Hack Attempts . | . . . . . . . Triggered . | . . . . . . . Disarmed . | . . . . . . . Reprogrammed . | . . . . . . . Reused . | . . . . . . . Traps Extracted . | . . . . . . . Installed . | . . . . . . . Triggered . | . . . . . . . Machines | -11 -10 -10 -10 -8 -8 -6 ---------- Run | Yrd Mat Min Sub Rec Scr Fac Machines Disabled 7 | . 2 1 2 . . 2 Max in Single Turn 1 | . 1 1 1 . . . Garrison Access 1 | . . . . . . 1 Machines Repaired . | . . . . . . . Machines Dismantled . | . . . . . . . Machines Sabotaged . | . . . . . . . Overloaded Fab Kills . | . . . . . . . Hacking | -11 -10 -10 -10 -8 -8 -6 --------- Run | Yrd Mat Min Sub Rec Scr Fac Machines Accessed 27 | . 1 . 4 14 . 8 Terminals 9 | . . . . 6 . 3 Fabricators 1 | . . . . . . 1 Repair Stations 2 | . 1 . . . . 1 Recycling Units 9 | . . . . 8 . 1 Scanalyzers 1 | . . . . . . 1 Garrison Access 1 | . . . . . . 1 Total Hacks 88 | . 8 . 16 35 . 29 Successful 70 | . 7 . 16 28 . 19 Failed 18 | . 1 . . 7 . 10 Catastrophic . | . . . . . . . Database Lockouts . | . . . . . . . Manual 18 | . . . . 16 . 2 Terminals 27 | . . . . 16 . 11 Fabricators 3 | . . . . . . 3 Repair Stations 11 | . 8 . . . . 3 Recycling Units 21 | . . . . 19 . 2 Scanalyzers 9 | . . . . . . 9 Garrison Access 1 | . . . . . . 1 Terminal Hacks 28 | . . . 16 7 . 5 Record 15 | . . . 13 . . 2 Part Schematic 6 | . . . . 6 . . Robot Schematic 2 | . . . . 1 . 1 Robot Analysis 1 | . . . . . . 1 Open Door 1 | . . . 1 . . . Recall Investigation 1 | . . . . . . 1 Proto ID Catalog 1 | . . . 1 . . . Release Object 1 | . . . 1 . . . Fabricator Hacks 1 | . . . . . . 1 Load Schematic 1 | . . . . . . 1 Repair Station Hacks 9 | . 7 . . . . 2 Scan Component 5 | . 4 . . . . 1 Repair 4 | . 3 . . . . 1 Recycling Unit Hacks 9 | . . . . 8 . 1 Retrieve Components 9 | . . . . 8 . 1 Scanalyzer 8 | . . . . . . 8 Insert Component 4 | . . . . . . 4 Analyze 4 | . . . . . . 4 Garrison Access Hacks 1 | . . . . . . 1 Seal Access 1 | . . . . . . 1 Unauthorized Hacks 14 | . . . . 13 . 1 Terminals 6 | . . . . 5 . 1 Botnet 6 | . . . . 5 . 1 Fabricators . | . . . . . . . Repair Stations . | . . . . . . . Recycling Units 8 | . . . . 8 . . Reject 8 | . . . . 8 . . Scanalyzers . | . . . . . . . Garrison Access . | . . . . . . . Data Cores Recovered . | . . . . . . . Used . | . . . . . . . Hacking Detections 17 | . 1 . . 9 . 7 Full Trace Events 7 | . 1 . . 2 . 4 Feedback Events . | . . . . . . . Feedback Blocked . | . . . . . . . Robot Schematics Acquired 2 | . . . . 1 . 1 Robots Built . | . . . . . . . Authchips . | . . . . . . . Time . | . . . . . . . Total Robot Build Rating . | . . . . . . . Part Schematics Acquired 23 | . . . . 6 . 17 Parts Built . | . . . . . . . Authchips . | . . . . . . . Time . | . . . . . . . Total Part Build Rating . | . . . . . . . Part Studies Acquired . | . . . . . . . Parts Repaired 4 | . 3 . . . . 1 Time 128 | . 102 . . . . 26 Parts Recycled . | . . . . . . . Recycled Matter . | . . . . . . . Retrieved Matter . | . . . . . . . Retrieved Components 29 | . . . . 27 . 2 Parts Scanalyzed 4 | . . . . . . 4 Part Schematics Acquired 4 | . . . . . . 4 Parts Damaged . | . . . . . . . Bothacking | -11 -10 -10 -10 -8 -8 -6 ------------ Run | Yrd Mat Min Sub Rec Scr Fac Used RIF Installer . | . . . . . . . Robots Hacked . | . . . . . . . Non-combat . | . . . . . . . Combat . | . . . . . . . Robot Hacks Applied . | . . . . . . . Relay Couplers Released 4 | . . . . . . 4 Machine Destruction 4 | . . . . . . 4 Fabnet Peak Effective % . | . . . . . . . Robots Rewired 3 | . . . . 3 . . Allies Hacked . | . . . . . . . Hacks Repelled . | . . . . . . . Allies | -11 -10 -10 -10 -8 -8 -6 -------- Run | Yrd Mat Min Sub Rec Scr Fac Total Allies 46 | . . . 43 3 . . Largest Group 6 | . . . 6 3 3 3 Highest-Rated Group 114 | . . . 114 42 42 42 Highest-Rated Ally 21 | . . . 19 21 21 21 Total Orders . | . . . . . . . Ally Attacks 59 | . . . 29 9 . 21 Total Damage 832 | . . . 426 137 . 269 Kills 10 | . . . 5 2 . 3 Allies Corrupted . | . . . . . . . Allies Melted 8 | . . . 8 . . . Intel | -11 -10 -10 -10 -8 -8 -6 ------- Run | Yrd Mat Min Sub Rec Scr Fac Active Infowar (turns) 11874 | . . . 9633 160 . 2081 Sensors 2796 | . . . 1793 160 . 843 Terrain 2582 | . . . 2582 . . . Structural 5258 | . . . 5258 . . . Machine Analysis 2081 | . . . . . . 2081 Jamming 566 | . . . . . . 566 Robot Analysis Total 1 | . . . . . . 1 Derelict Logs Recovered 4 | . . 1 3 . . . Drone Launches . | . . . . . . . Drone Recoveries . | . . . . . . . Exploration | -11 -10 -10 -10 -8 -8 -6 ------------- Run | Yrd Mat Min Sub Rec Scr Fac Turns Passed 25584 | 99 1418 1890 15373 2671 1725 2408 Spaces Moved 8300 | 49 451 689 4635 945 720 811 Core 34 | 21 . . . . . 13 Treads 8228 | 28 451 689 4635 945 720 760 Legs 19 | . . . . . . 19 Wheels 19 | . . . . . . 19 Hover . | . . . . . . . Flight . | . . . . . . . Fastest Speed 50 | 50 160 240 160 160 237 90 Average Speed 209 | 112 175 240 195 244 237 216 Slowest Speed 750 | 160 240 240 260 260 237 750 Overloaded Moves . | . . . . . . . Propulsion Burnouts . | . . . . . . . Robots Hopped . | . . . . . . . Potential Cave-ins 4 | . . . 4 . . . Cave-ins Triggered . | . . . . . . . Exploration Rate (%) 62 | 3 69 100 89 99 54 25 Regions Visited 6 Branch Regions 4 Pre-discovered Areas 2 | . . . 2 . . . Known Exits Taken 6 | 1 1 1 1 1 1 . Unknown Exits Taken . | . . . . . . . Scrap Searched 17 | . . 1 8 . 8 . Spaces Dug 674 | . . . 671 3 . . Terrain Destroyed 991 | . 5 . 962 13 . 11 Melee . | . . . . . . . Projectile 978 | . . . 954 13 . 11 AOE 13 | . 5 . 8 . . . Terrain Rammed . | . . . . . . . Walls Destroyed . | . . . . . . . Machines Disabled . | . . . . . . . Actions | -11 -10 -10 -10 -8 -8 -6 --------- Run | Yrd Mat Min Sub Rec Scr Fac Total 15102 | 76 982 875 9850 1274 743 1302 Wait 5086 | . 416 155 3961 248 7 299 Move 8294 | 48 450 688 4634 944 719 811 Hop . | . . . . . . . Pick Up 73 | 7 13 2 13 9 5 24 Fast Attach 21 | . 5 . 3 . . 13 Attach 38 | 4 . 2 5 2 . 25 Detach 8 | . . 1 4 1 . 2 Swap 49 | . 7 . 18 13 4 7 Drop 54 | . 3 1 22 9 8 11 Fire 1463 | 17 87 26 1189 36 . 108 Melee 1 | . . . . . . 1 Ram . | . . . . . . . Kick . | . . . . . . . Crush 2 | . 1 . . . . 1 Escape Stasis . | . . . . . . . Rewire 13 | . . . 1 12 . . Trap . | . . . . . . . Miscellaneous . | . . . . . . . Route ------- -11/Scrapyard -10/Materials (discovered 3 exits: *Mat x2 / *Min) -10/Mines (discovered 3 exits: *Mat x2 / *Sub) -10/Subcaves (discovered 3 exits: *Mat x2 / *Rec) -8/Recycling (discovered 2 exits: *Fac / *Scr) -8/Scraptown -6/Factory (discovered 2 exits: *Fac x2) History --------- Turn | Location | Event 12 | -11/Scrapyard | Identified exit to Materials 12 | -11/Scrapyard | Discovered exit to Materials (range 14) 100 | -11/Scrapyard | Entered Materials 100 | -10/Materials | Evolved 1 slot: Utility x1 313 | -10/Materials | Build established: Hacker-Mutant 856 | -10/Materials | Identified exit to Materials 856 | -10/Materials | Discovered exit to Materials (range 14) 1043 | -10/Materials | Discovered exit to Materials (range 3) 1199 | -10/Materials | Repaired Lgt. Nuclear Core 1226 | -10/Materials | Repaired Lgt. Treads 1265 | -10/Materials | Repaired Lgt. Nuclear Core 1456 | -10/Materials | Identified exit to Mines 1456 | -10/Materials | Discovered exit to Mines (range 11) 1518 | -10/Materials | Entered Mines 1923 | -10/Mines | Learned 2 Materials zone layouts 1944 | -10/Mines | Found a damaged Exp. Sensor Array with a note attached 1949 | -10/Mines | Found Prototype Device 1996 | -10/Mines | Discovered exit to Materials (range 3) 2236 | -10/Mines | Core integrity fell below 50% 2369 | -10/Mines | Identified exit to Subcaves 2369 | -10/Mines | Discovered exit to Subcaves (range 6) 2421 | -10/Mines | Discovered exit to Materials (range 11) 3408 | -10/Mines | Entered Subcaves 3686 | -10/Subcaves | Ambushed by angry Subdweller bent on revenge 4411 | -10/Subcaves | Identified exit to Materials 4411 | -10/Subcaves | Discovered exit to Materials (range 13) 4424 | -10/Subcaves | Learned location of Zion (-6) 4424 | -10/Subcaves | Met a Zionite searching for "candidates" 4716 | -10/Subcaves | Visited triangular shrine 4731 | -10/Subcaves | Found Prototype Device 4731 | -10/Subcaves | Identified V3-11A's Pendant 4736 | -10/Subcaves | Befriended Subdweller 5553 | -10/Subcaves | Shifting Twisted Machinery released Battle Rifle 5563 | -10/Subcaves | Shifting Twisted Machinery released Sub. Beam Cannon 5868 | -10/Subcaves | Discovered exit to Materials (range 8) 5907 | -10/Subcaves | Learned location of 1 exit from Materials 6130 | -10/Subcaves | Ambushed by angry Subdweller bent on revenge 6131 | -10/Subcaves | Befriended Subdweller 6381 | -10/Subcaves | Befriended Subdweller 6529 | -10/Subcaves | Shifting Twisted Machinery released Sub. Laser 6627 | -10/Subcaves | Visited Clippyterm 6632 | -10/Subcaves | Learned location of Section 7 (-2) 6632 | -10/Subcaves | Learned Factory trap positions 6732 | -10/Subcaves | Visited 4L-MR0's lab 6749 | -10/Subcaves | Found Powered Cannon 6809 | -10/Subcaves | A swath of the cavern ceiling suddenly collapsed 6946 | -10/Subcaves | Befriended Subdweller 7461 | -10/Subcaves | Befriended Subdweller 7611 | -10/Subcaves | Befriended Subdweller 8009 | -10/Subcaves | Shifting Twisted Machinery released Battle Rifle 8019 | -10/Subcaves | Shifting Twisted Machinery released Sub. Machine Gun 8020 | -10/Subcaves | A swath of the cavern ceiling suddenly collapsed 8131 | -10/Subcaves | Befriended Subdweller 8131 | -10/Subcaves | Befriended Subdweller 8175 | -10/Subcaves | Learned Materials emergency access door positions 8207 | -10/Subcaves | Identified exit to Recycling 8207 | -10/Subcaves | Discovered exit to Recycling (range 10) 8209 | -10/Subcaves | Core integrity fell below 20% 9798 | -10/Subcaves | Ambushed by angry Subdweller bent on revenge 9909 | -10/Subcaves | Murdered 5 allies 11042 | -10/Subcaves | Attached Powered Cannon, gained temporary slot: Power 11368 | -10/Subcaves | Ambushed by Subdweller buried in earth 11371 | -10/Subcaves | Befriended Subdweller 11420 | -10/Subcaves | Ambushed by Subdweller buried in earth 11421 | -10/Subcaves | Befriended Subdweller 11601 | -10/Subcaves | Ambushed by Subdweller buried in earth 11606 | -10/Subcaves | Befriended Subdweller 11632 | -10/Subcaves | Approached by friendly Subdweller 11766 | -10/Subcaves | Befriended Subdweller 12162 | -10/Subcaves | Ambushed by Subdweller buried in earth 12166 | -10/Subcaves | Befriended Subdweller 12291 | -10/Subcaves | Ambushed by Subdweller buried in earth 12296 | -10/Subcaves | Befriended Subdweller 12412 | -10/Subcaves | Ambushed by Subdweller buried in earth 12416 | -10/Subcaves | Befriended Subdweller 12494 | -10/Subcaves | Ambushed by Subdweller buried in earth 12496 | -10/Subcaves | Befriended Subdweller 12651 | -10/Subcaves | Ambushed by Subdweller buried in earth 12656 | -10/Subcaves | Befriended Subdweller 12836 | -10/Subcaves | Approached by friendly Subdweller 12876 | -10/Subcaves | Ambushed by Subdweller buried in earth 12877 | -10/Subcaves | Approached by friendly Subdweller 12881 | -10/Subcaves | Befriended Subdweller 13080 | -10/Subcaves | Ambushed by Subdweller buried in earth 13081 | -10/Subcaves | Befriended Subdweller 13258 | -10/Subcaves | Ambushed by Subdweller buried in earth 13261 | -10/Subcaves | Befriended Subdweller 13512 | -10/Subcaves | Ambushed by Subdweller buried in earth 13516 | -10/Subcaves | Befriended Subdweller 13527 | -10/Subcaves | Ambushed by Subdweller buried in earth 13531 | -10/Subcaves | Befriended Subdweller 13654 | -10/Subcaves | Ambushed by Subdweller buried in earth 13656 | -10/Subcaves | Befriended Subdweller 14511 | -10/Subcaves | Ambushed by Subdweller buried in earth 14516 | -10/Subcaves | Befriended Subdweller 14567 | -10/Subcaves | Ambushed by Subdweller buried in earth 14571 | -10/Subcaves | Befriended Subdweller 14918 | -10/Subcaves | Ambushed by Subdweller buried in earth 14921 | -10/Subcaves | Befriended Subdweller 15224 | -10/Subcaves | Ambushed by Subdweller buried in earth 15226 | -10/Subcaves | Befriended Subdweller 15802 | -10/Subcaves | Ambushed by Subdweller buried in earth 15806 | -10/Subcaves | Befriended Subdweller 15944 | -10/Subcaves | Ambushed by Subdweller buried in earth 15946 | -10/Subcaves | Befriended Subdweller 15999 | -10/Subcaves | Ambushed by Subdweller buried in earth 16001 | -10/Subcaves | Befriended Subdweller 16237 | -10/Subcaves | Ambushed by Subdweller buried in earth 16241 | -10/Subcaves | Befriended Subdweller 16592 | -10/Subcaves | Ambushed by Subdweller buried in earth 16596 | -10/Subcaves | Befriended Subdweller 16616 | -10/Subcaves | Ambushed by Subdweller buried in earth 16621 | -10/Subcaves | Befriended Subdweller 16924 | -10/Subcaves | Ambushed by Subdweller buried in earth 16926 | -10/Subcaves | Befriended Subdweller 17112 | -10/Subcaves | Ambushed by Subdweller buried in earth 17114 | -10/Subcaves | Ambushed by Subdweller buried in earth 17116 | -10/Subcaves | Befriended Subdweller 17116 | -10/Subcaves | Befriended Subdweller 17137 | -10/Subcaves | Ambushed by Subdweller buried in earth 17141 | -10/Subcaves | Befriended Subdweller 17177 | -10/Subcaves | Murdered 3 allies 17312 | -10/Subcaves | Ambushed by Subdweller buried in earth 17316 | -10/Subcaves | Befriended Subdweller 17387 | -10/Subcaves | Ambushed by Subdweller buried in earth 17391 | -10/Subcaves | Befriended Subdweller 17851 | -10/Subcaves | Ambushed by Subdweller buried in earth 17856 | -10/Subcaves | Befriended Subdweller 18650 | -10/Subcaves | Found SUBCON Basin 18781 | -10/Subcaves | Entered Recycling 19192 | -8/Recycling | Scanned before Scraplab entrance 19231 | -8/Recycling | Entered Scraplab 19398 | -8/Recycling | Identified exit to Factory 19398 | -8/Recycling | Discovered exit to Factory (range 15) 21442 | -8/Recycling | Identified exit to Scraptown 21442 | -8/Recycling | Discovered exit to Scraptown (range 3) 21452 | -8/Recycling | Entered Scraptown 21452 | -8/Scraptown | Accompanied by 3 allies 21750 | -8/Scraptown | Visited Supply Room 21817 | -8/Scraptown | Visited Bundlers 22014 | -8/Scraptown | Visited Spacefarers 22056 | -8/Scraptown | Visited Awakened 22075 | -8/Scraptown | Visited Cyclists 22101 | -8/Scraptown | Visited Assassins FH 22132 | -8/Scraptown | Visited IN-MT5's Study 22304 | -8/Scraptown | Discovered exit to Factory (range 11) 22533 | -8/Scraptown | Heard Great Nut preacher, LISTEN AND RECITE! 22654 | -8/Scraptown | Delivered V3-11A's Pendant to T0-NE2 in exchange for information 23177 | -8/Scraptown | Entered Factory 23177 | -6/Factory | Accompanied by 3 allies 23177 | -6/Factory | Evolved 8 slots: Power x1, Propulsion x2, Utility x5 23178 | -6/Factory | Loaded intel: 89 trap records 23441 | -6/Factory | Identified exit to Factory 23441 | -6/Factory | Discovered exit to Factory (range 7) 23726 | -6/Factory | Tech Extrapolator generated special schematic: Deep Structural Scanner 23858 | -6/Factory | Spotted B-75 Beast 23909 | -6/Factory | Destroyed B-75 Beast 24100 | -6/Factory | Lost 6 parts (2n2u2w) 24126 | -6/Factory | Repaired Faulty Cld. Plasma Cannon 24271 | -6/Factory | Tech Extrapolator generated special schematic: Machine Rigger 24591 | -6/Factory | Cargo convoy interrupted 24836 | -6/Factory | Build established: Scavenger-Mutant 25295 | -6/Factory | Core integrity fell below 50% 25316 | -6/Factory | Discovered exit to Factory (range 9) 25328 | -6/Factory | Lost 4 parts (2n1u1w) 25395 | -6/Factory | Core integrity fell below 20% 25431 | -6/Factory | Lost 8 parts (1p3n3u1w) 25536 | -6/Factory | Identified Exp. Sensor Array 25585 | -6/Factory | Destroyed by G-50 Soldier with Heavy Laser Last Messages --------------- 25563_ K-01 Serf collects debris. 25565_ G-50 Soldier suffers critical hit (Burn). 25566_ Acquired 4 matter. 25566_ K-01 Serf collects debris. 25568_ Slug penetrates G-50 Soldier. 25568_ K-01 Serf destroyed. 25569_ Acquired 1 matter. 25571_ Slug penetrates G-50 Soldier. 25574_ System Guard destroyed. 25577_ Slug penetrates G-50 Soldier. 25578_ G-50 Soldier heat short circuits Carbon-fiber Leg. 25580_ Power failure, Imp. Deuterium Engine shutdown. 25580_ Slug penetrates G-50 Soldier. 25581_ Overheating: System interference. 25581_ Gauss Rifle temporarily disabled. 25581_ Phase Cannon temporarily disabled. 25585_ Overheating: Flexi-carbon Leg damaged (-74). Map ----- +----------------------------------------------------+ | ?????????????????????????????????????????????????? | | ?????????????????????????????????????????????????? | | ?????????????????????????????????????????????????? | | ??^??????????????????????????????????????????????? | | ?????????????????????????????????????????????????? | | ?????????????????????????????????????????????????? | | ?????????????????????????????????????????????????? | | ????????????????????????????????????????????"""??? | | ????????????????????????????????????????????"""??? | | ????????????????????????????????????????????"""??? | | ????????????????????????????? ???????????????????? | | ????????????????????????????? ??????????????#????? | | ??????????????????????????? ?????????#???? ????? | | ??????????????????????????? ?????????# """ ????? | | ?????????????????????????? "" ????"""??# """ ????? | | ????^^?????????????????????T ????"""??# """ ????? | | ????^^??"?"?"?"??""???????? ????"""??# ????? | | ????????"?"?"?"??T"???????? ?????????# =| #???? | | ????????"?"?"?"??""????????# #?????????# | ##### | | ????????"?"?"?"????######### #????+#???# # = | | ????????"?"?"?"????# """" # ##### #???# !# | | ????????"?"?"?"????# ""S"" # #???? # """ | | ????????"?"?"?"????# "" "" # ######?? # """ | | ????????"?"?"?"????# # #???! # """ | | ????????"?"?"?"????#"" g;[ ######/# "" | | ???????????????????#"" @g/% < !!!!+ "" | | ???????????????????#""" *=%#% ###%!! # | | ???????????????????#""" !=[###### #?#=*!*##### | | ???????????????????#""" !!#????#######?#]!!|##??? | | ???????????????????# #????????????#%!| ##??? | | ???????????????????# ## ??????????# !% ##??? | | ???????????????????########## ????????# =%*##??? | | ????????????????????????????# ??????# %% #%### | | ????????????????????????????# = ????# ### | | ?"""????????????????????????# ??# | | ?"""????????????????????????# # | | ?"""????????????????????????# + | | ????????????????????????????# # | | ?"""????????????????????????# # | | ?"""????????????????????????# ?? ?######## | | ?"""????????????????????????# ??? ????????### | | ????????????????????????????# ???? ???????????# | | ????????????????????????????# ?????? ????????????# | | ?????????????????????????????????????????????????# | | ?????????????????????????????????????????????????# | | ?????????????????????????????????????????????????# | | ?????????????????????????????????????????????????# | | ?????????????????????????????????????????????????# | | ?????????????????????????????????????????????????# | | ?????????????????????????????????????????????????# | +----------------------------------------------------+ Best States ------------- Heat Dissipation 87 Energy Generation 43 Energy Capacity 490 Matter Stores 300 Matter Capacity 300 Sight Range 16 Robot Scan Range 16 Terrain Scan Range 16 Terrain Scan Density 10 Jamming Range 12 Corruption Containment 16 Armor Coverage 450 Resistance: KI 35 Resistance: TH 35 Resistance: EX 35 Resistance: EM 35 Resistance: I 35 Resistance: S 35 Resistance: P 35 Evasion (%) 50 Recoil Reduction 3 Offensive Hacking 30 Item Schematics ----------------- Imp. Signal Interpreter | -8/Recycling | Hacked Coolant Injector | -8/Recycling | Hacked Energy Well | -8/Recycling | Hacked Hyb. Fission Core | -8/Recycling | Hacked Deuterium Engine | -8/Recycling | Hacked Imp. Actuator Array | -8/Recycling | Hacked Mak. Leg | -6/Factory | Extrapolated Mak. Coolant Network | -6/Factory | Extrapolated Mak. Medium Armor Plating | -6/Factory | Extrapolated Mak. Ablative Armor | -6/Factory | Extrapolated Mak. Hacking Suite | -6/Factory | Extrapolated Deep Structural Scanner | -6/Factory | Extrapolated Mak. Laser | -6/Factory | Extrapolated Mak. Thermal Plating | -6/Factory | Extrapolated Battle Rifle | -6/Factory | Extrapolated Barrage Gun | -6/Factory | Extrapolated Beamcaster | -6/Factory | Extrapolated Bore Cannon | -6/Factory | Extrapolated Machine Rigger | -6/Factory | Extrapolated Imp. Hacking Suite | -6/Factory | Scanalyzed Exp. Sensor Array | -6/Factory | Scanalyzed System Guard | -6/Factory | Scanalyzed System Shield | -6/Factory | Scanalyzed Robot Schematics ------------------ M-13 Machinist | -8/Recycling | Hacked Y-54 Guardian | -6/Factory | Hacked Fabricated ------------ Nothing Repaired ---------- Lgt. Nuclear Core | 18% | -10/Materials Lgt. Treads | 24% | -10/Materials Lgt. Nuclear Core | 54% | -10/Materials Cld. Plasma Cannon | 69% | -6/Factory Studied --------- None Alien Tech Used ----------------- None Achievements -------------- None Challenges ------------ None Game ------ Seed RefineryGhostNetwork Manual? 0 Play Time 01:39:16 Cumulative 277.5 hours Start 2026.01.13 @ 11:12:13 End 2026.01.13 @ 13:26:10 Sessions 1 Manual Loads 0 Difficulty Explorer Special Mode None Game No. 433 Rogue 0 Adventurer 0 Explorer 433 Win Type - Total 0 Types 0/0/0/0/0/0/0/0/0/0 Lore% 74 Gallery% 69 Achievement% 55 Wizard Run 0 Options --------- Layout 1 ASCII 0 Keyboard 0 Movement Mouse Keybinds 1 Fullscreen 1 Font 24/Smallcaps Map View 50x35 Zoom Use 0% Tactical HUD 1 Map Filters NONE Filters NONE Steam 1 RUN: e5b8ef2a-7221-4fcb-b193-6534cba341d4